Workbook

Sheet INGRESO DE DATOS
A10: (Para renovaciones de pólizas emitidas en 2020)
A13: 1. LLENE LA INFORMACIÓN DEL ASEGURADO PROPUESTO:
B15: Nombre del Asegurado Titular: | D15: NOMBRE COMPLETO
B17: Número de adultos en la póliza: | D17: 2 | F17: Número de niños en la póliza: | H17: 2
B19: Edad del Asegurado Titular: | D19: 32 | F19: Edad del/la cónyuge : | H19: 46
B26: 1 | D26: 1

Sheet Global Premier
A16: GLOBAL PREMIER HEALTH PLAN
D17: Nombre del Asegurado Titular: | F17: =+'INGRESO DE DATOS'!$D$15 -> NOMBRE COMPLETO
D19: Número de adultos en la póliza: | F19: =+'INGRESO DE DATOS'!$D$17 -> 2 | H19: Edad del Asegurado Titular: | I19: =+'INGRESO DE DATOS'!$D$19 -> 32
D21: Número de niños en la póliza: | F21: =+'INGRESO DE DATOS'!$H$17 -> 2 | H21: Edad del/la conyuge: | I21: =+'INGRESO DE DATOS'!$H$19 -> 46
H23: Fecha de la cotización: | I23: =NOW() -> 2021-12-20T11:33:26.690
H24: FALSE
E25: Deducibles | G25: PLAN 1 | H25: PLAN 2 | I25: PLAN 3 | J25: PLAN 4
E26: En el país de residencia | G26: 250 | H26: 2000 | I26: 5000 | J26: 10000
E27: Fuera del país de residencia | G27: 5000 | H27: 2000 | I27: 5000 | J27: 10000
E29: Tarifas anuales
E30: Prima para Asegurado Titular | G30: =VLOOKUP($I$19,Tablas!$A$155:$G$221,3,TRUE) -> 5105.95 | H30: =VLOOKUP($I$19,Tablas!$A$155:$G$221,4,TRUE) -> 4634.2 | I30: =VLOOKUP($I$19,Tablas!$A$155:$G$221,5,TRUE) -> 3343.05 | J30: =VLOOKUP($I$19,Tablas!$A$155:$G$221,6,TRUE) -> 2419.95
E31: Prima para conyuge | G31: =IF($F$19=1,0,(VLOOKUP($I$21,Tablas!$A$155:$G$221,3,TRUE))) -> 7002.3 | H31: =IF($F$19=1,0,(VLOOKUP($I$21,Tablas!$A$155:$G$221,4,TRUE))) -> 6354.6 | I31: =IF($F$19=1,0,(VLOOKUP($I$21,Tablas!$A$155:$G$221,5,TRUE))) -> 4484.6 | J31: =IF($F$19=1,0,(VLOOKUP($I$21,Tablas!$A$155:$G$221,6,TRUE))) -> 3245.3
E32: Prima para hijo (s) | G32: =IF($F$21=0,0,(VLOOKUP($F$21,Tablas!$A$222:$G$224,3,TRUE))) -> 3092.3 | H32: =IF($F$21=0,0,(VLOOKUP($F$21,Tablas!$A$222:$G$224,4,TRUE))) -> 2805 | I32: =IF($F$21=0,0,(VLOOKUP($F$21,Tablas!$A$222:$G$224,5,TRUE))) -> 2098.65 | J32: =IF($F$21=0,0,(VLOOKUP($F$21,Tablas!$A$222:$G$224,6,TRUE))) -> 1520.65
E33: Total de Prima neta | G33: =SUM(G30:G32) -> 15200.55 | H33: =SUM(H30:H32) -> 13793.8 | I33: 9926.3 | J33: =SUM(J30:J32) -> 7185.9
E34: Tarifa administrativa anual | G34: 75 | H34: 75 | I34: 75 | J34: 75
E35: IVA (12%) | G35: =(G33+G34)*12% -> 1833.066 | H35: =(H33+H34)*12% -> 1664.256 | I35: 1200.156 | J35: =(J33+J34)*12% -> 871.308
E36: TOTAL ANUAL | G36: =SUM(G33:G35) -> 17108.616 | H36: =SUM(H33:H35) -> 15533.056 | I36: =SUM(I33:I35) -> 11201.456 | J36: =SUM(J33:J35) -> 8132.208
E38: Tarifas semi anuales
E39: Prima para Asegurado Titular | G39: =VLOOKUP($I$19,Tablas!$A$530:$G$596,3,TRUE) -> 2706.1535 | H39: =VLOOKUP($I$19,Tablas!$A$530:$G$596,4,TRUE) -> 2456.126 | I39: =VLOOKUP($I$19,Tablas!$A$530:$G$596,5,TRUE) -> 1771.8165 | J39: =VLOOKUP($I$19,Tablas!$A$530:$G$596,6,TRUE) -> 1282.5735
E40: Prima para conyuge | G40: =IF($F$19=1,0,(VLOOKUP($I$21,Tablas!$A$530:$G$596,3,TRUE))) -> 3711.219 | H40: =IF($F$19=1,0,(VLOOKUP($I$21,Tablas!$A$530:$G$596,4,TRUE))) -> 3367.938 | I40: =IF($F$19=1,0,(VLOOKUP($I$21,Tablas!$A$530:$G$596,5,TRUE))) -> 2376.838 | J40: =IF($F$19=1,0,(VLOOKUP($I$21,Tablas!$A$530:$G$596,6,TRUE))) -> 1720.009
E41: Prima para hijo (s) | G41: =IF($F$21=0,0,(VLOOKUP($F$21,Tablas!$A$597:$G$599,3,TRUE))) -> 1638.919 | H41: =IF($F$21=0,0,(VLOOKUP($F$21,Tablas!$A$597:$G$599,4,TRUE))) -> 1486.65 | I41: =IF($F$21=0,0,(VLOOKUP($F$21,Tablas!$A$597:$G$599,5,TRUE))) -> 1112.2845 | J41: =IF($F$21=0,0,(VLOOKUP($F$21,Tablas!$A$597:$G$599,6,TRUE))) -> 805.9445
E42: Total de Prima neta | G42: =SUM(G39:G41) -> 8056.2915 | H42: =SUM(H39:H41) -> 7310.714 | I42: =SUM(I39:I41) -> 5260.939 | J42: =SUM(J39:J41) -> 3808.527
E43: Tarifa administrativa anual | G43: 75 | H43: 75 | I43: 75 | J43: 75
E44: IVA (12%) | G44: =(G42+G43)*12% -> 975.75498 | H44: =(H42+H43)*12% -> 886.28568 | I44: 640.31268 | J44: =(J42+J43)*12% -> 466.02324
E45: TOTAL de primera cuota | G45: =SUM(G42:G44) -> 9107.04648 | H45: =SUM(H42:H44) -> 8271.99968 | I45: =SUM(I42:I44) -> 5976.25168 | J45: =SUM(J42:J44) -> 4349.55024
E46: Costo de segunda cuota | G46: =G42+G44 - G43*12% -> 9023.04648 | H46: =H42+H44 - H43*12% -> 8187.99968 | I46: 5892.25168 | J46: =J42+J44 - J43*12% -> 4265.55024
E47: TOTAL ANUAL | G47: =G45+G46 -> 18130.09296 | H47: =H45+H46 -> 16459.99936 | I47: 11868.50336 | J47: =J45+J46 -> 8615.10048
E49: Tarifas trimestrales
E50: Prima para Asegurado Titular | G50: =VLOOKUP($I$19,Tablas!$A$755:$G$821,3,TRUE) -> 1404.13625 | H50: =VLOOKUP($I$19,Tablas!$A$755:$G$821,4,TRUE) -> 1274.405 | I50: =VLOOKUP($I$19,Tablas!$A$755:$G$821,5,TRUE) -> 919.33875 | J50: =VLOOKUP($I$19,Tablas!$A$755:$G$821,6,TRUE) -> 665.48625
E51: Prima para conyuge | G51: =IF($F$19=1,0,(VLOOKUP($I$21,Tablas!$A$755:$G$821,3,TRUE))) -> 1925.6325 | H51: =IF($F$19=1,0,(VLOOKUP($I$21,Tablas!$A$755:$G$821,4,TRUE))) -> 1747.515 | I51: =IF($F$19=1,0,(VLOOKUP($I$21,Tablas!$A$755:$G$821,5,TRUE))) -> 1233.265 | J51: =IF($F$19=1,0,(VLOOKUP($I$21,Tablas!$A$755:$G$821,6,TRUE))) -> 892.4575
E52: Prima para hijo (s) | G52: =IF($F$21=0,0,(VLOOKUP($F$21,Tablas!$A$822:$G$824,3,TRUE))) -> 850.3825 | H52: =IF($F$21=0,0,(VLOOKUP($F$21,Tablas!$A$822:$G$824,4,TRUE))) -> 771.375 | I52: =IF($F$21=0,0,(VLOOKUP($F$21,Tablas!$A$822:$G$824,5,TRUE))) -> 577.12875 | J52: =IF($F$21=0,0,(VLOOKUP($F$21,Tablas!$A$822:$G$824,6,TRUE))) -> 418.17875
E53: Total de Prima neta | G53: =SUM(G50:G52) -> 4180.15125 | H53: =SUM(H50:H52) -> 3793.295 | I53: =SUM(I50:I52) -> 2729.7325 | J53: =SUM(J50:J52) -> 1976.1225
E54: Tarifa administrativa anual | G54: 75 | H54: 75 | I54: 75 | J54: 75
E55: IVA (12%) | G55: =(G53+G54)*12% -> 510.61815 | H55: =(H53+H54)*12% -> 464.1954 | I55: 336.5679 | J55: =(J53+J54)*12% -> 246.1347
E56: TOTAL de primera cuota | G56: =SUM(G53:G55) -> 4765.7694 | H56: =SUM(H53:H55) -> 4332.4904 | I56: =SUM(I53:I55) -> 3141.3004 | J56: =SUM(J53:J55) -> 2297.2572
E57: Costo de tarifa trimestral 2 a 4 | G57: =G53+G55 - G54*12% -> 4681.7694 | H57: =H53+H55 - H54*12% -> 4248.4904 | I57: 3057.3004 | J57: =J53+J55 - J54*12% -> 2213.2572
E58: TOTAL ANUAL | G58: =G56+(G57*3) -> 18811.0776 | H58: =H56+(H57*3) -> 17077.9616 | I58: 12313.2016 | J58: =J56+(J57*3) -> 8937.0288
E61: Tarifas en US $ - Efectivas a partir del 1ro de enero de 2022
E62: Este presupuesto solamente tiene carácter informativo y en ningún momento expresa compromiso legal para suministrarle cobertura de seguro. La emisión de una póliza de seguro Bupa está sujeta a todas las evaluaciones de riesgo por parte de Bupa y a la recepción de todos los pagos de prima requeridos.

Sheet Resumen tarifas
A27: Cotizador de Seguro Médico - Bupa Global Health Plans
A29: Nombre del Asegurado Titular | C29: =+'INGRESO DE DATOS'!$D$15 -> NOMBRE COMPLETO
A32: Número de adultos en la póliza | C32: =+'INGRESO DE DATOS'!$D$17 -> 2 | E32: Edad del Asegurado Titular | G32: =+'INGRESO DE DATOS'!$D$19 -> 32
A35: Número de niños en la póliza | C35: =+'INGRESO DE DATOS'!$H$17 -> 2 | E35: Edad del/la cónyuge | G35: =+'INGRESO DE DATOS'!$H$19 -> 46
D38: FECHA DE LA COTIZACIÓN : | E38: =NOW() -> 2021-12-20T11:33:26.690
A41: Global Premier Health Plan
A42: Deducibles | E42: PLAN 1 | F42: PLAN 2 | G42: PLAN 3 | H42: PLAN 3
A43: En el país de residencia | E43: 250 | F43: 2000 | G43: 5000 | H43: 10000
A44: Fuera del país de residencia | E44: 5000 | F44: 2000 | G44: 5000 | H44: 10000
E45: Tarifas anuales
E46: =+'Global Premier'!G36 -> 17108.616 | F46: =+'Global Premier'!H36 -> 15533.056 | G46: =+'Global Premier'!I36 -> 11201.456 | H46: =+'Global Premier'!J36 -> 8132.208
E47: Tarifas semi anuales
E48: =+'Global Premier'!G45 -> 9107.04648 | F48: =+'Global Premier'!H45 -> 8271.99968 | G48: =+'Global Premier'!I45 -> 5976.25168 | H48: =+'Global Premier'!J45 -> 4349.55024
E49: =+'Global Premier'!G46 -> 9023.04648 | F49: =+'Global Premier'!H46 -> 8187.99968 | G49: =+'Global Premier'!I46 -> 5892.25168 | H49: =+'Global Premier'!J46 -> 4265.55024
E50: Tarifas trimestrales
E51: =+'Global Premier'!G56 -> 4765.7694 | F51: =+'Global Premier'!H56 -> 4332.4904 | G51: =+'Global Premier'!I56 -> 3141.3004 | H51: =+'Global Premier'!J56 -> 2297.2572
E52: =+'Global Premier'!G57 -> 4681.7694 | F52: =+'Global Premier'!H57 -> 4248.4904 | G52: =+'Global Premier'!I57 -> 3057.3004 | H52: =+'Global Premier'!J57 -> 2213.2572
A55: Una tarifa administrativa de US$75 se carga automáticamente al primer pago
A56: *Basado en un modo de pago anual
A59: Tarifas en US $ - Efectivas a partir del 1ro de enero de 2021
A60: Este presupuesto solamente tiene carácter informativo y en ningún momento expresa compromiso legal para suministrarle cobertura de seguro. La emisión de una póliza de seguro Bupa está sujeta a todas las evaluaciones de riesgo por parte de Bupa y a la recepción de todos los pagos de prima requeridos.

Sheet Tablas (hidden)
A2: BUPA GLOBAL ELITE | I2: FACTOR MENSUAL: | K2: =1.12/12 -> 0.09333333333
A3: TARIFAS ANUALES | I3: FACTOR TRIMESTRAL: | K3: =1.1/4 -> 0.275
A4: EDAD | I4: FACTOR SEMIANUAL: | K4: =1.06/2 -> 0.53
C5: 1000 | D5: 2000 | E5: 3500 | F5: 5000 | G5: 10000 | M5: 1000 | N5: 2000 | O5: 3500 | P5: 5000 | Q5: 10000 | R5: 1000 | S5: 2000 | T5: 3500 | U5: 5000 | V5: 10000
A6: 18 | B6: OK | C6: =M6*$K$6 -> 5940.65 | D6: =N6*$K$6 -> 5206.25 | E6: 4410.65 | F6: 3823.3 | G6: 2966.5 | I6: Descuento (0%): | K6: 0.85 | M6: 6989 | N6: 6125 | O6: 5189 | P6: 4498 | Q6: 3490 | R6: =M6*85% -> 5940.65 | S6: =N6*85% -> 5206.25 | T6: =O6*85% -> 4410.65 | U6: =P6*85% -> 3823.3 | V6: =Q6*85% -> 2966.5
A7: 19 | C7: =M7*$K$6 -> 6012.05 | D7: =N7*$K$6 -> 5270 | E7: =O7*$K$6 -> 4457.4 | F7: =P7*$K$6 -> 3865.8 | G7: =Q7*$K$6 -> 2998.8 | M7: 7073 | N7: 6200 | O7: 5244 | P7: 4548 | Q7: 3528 | R7: =M7*85% -> 6012.05 | S7: =N7*85% -> 5270 | T7: =O7*85% -> 4457.4 | U7: =P7*85% -> 3865.8 | V7: =Q7*85% -> 2998.8
A8: 20 | C8: 6088.55 | D8: 5334.6 | E8: 4506.7 | F8: 3907.45 | G8: 3030.25 | M8: 7163 | N8: 6276 | O8: 5302 | P8: 4597 | Q8: 3565 | R8: 6088.55 | S8: 5334.6 | T8: 4506.7 | U8: 3907.45 | V8: 3030.25
A9: 21 | C9: 6164.2 | D9: 5403.45 | E9: 4556.85 | F9: 3951.65 | G9: 3065.1 | M9: 7252 | N9: 6357 | O9: 5361 | P9: 4649 | Q9: 3606 | R9: 6164.2 | S9: 5403.45 | T9: 4556.85 | U9: 3951.65 | V9: 3065.1
A10: 22 | C10: 6244.1 | D10: 5473.15 | E10: 4610.4 | F10: 3998.4 | G10: 3100.8 | M10: 7346 | N10: 6439 | O10: 5424 | P10: 4704 | Q10: 3648 | R10: 6244.1 | S10: 5473.15 | T10: 4610.4 | U10: 3998.4 | V10: 3100.8
A11: 23 | C11: 6326.55 | D11: 5547.1 | E11: 4665.65 | F11: 4045.15 | G11: 3138.2 | M11: 7443 | N11: 6526 | O11: 5489 | P11: 4759 | Q11: 3692 | R11: 6326.55 | S11: 5547.1 | T11: 4665.65 | U11: 4045.15 | V11: 3138.2
A12: 24 | C12: 6411.55 | D12: 5622.75 | E12: 4721.75 | F12: 4094.45 | G12: 3175.6 | M12: 7543 | N12: 6615 | O12: 5555 | P12: 4817 | Q12: 3736 | R12: 6411.55 | S12: 5622.75 | T12: 4721.75 | U12: 4094.45 | V12: 3175.6
A13: 25 | C13: 6501.65 | D13: 5698.4 | E13: 4778.7 | F13: 4143.75 | G13: 3214.7 | M13: 7649 | N13: 6704 | O13: 5622 | P13: 4875 | Q13: 3782 | R13: 6501.65 | S13: 5698.4 | T13: 4778.7 | U13: 4143.75 | V13: 3214.7
A14: 26 | C14: 6629.15 | D14: 5809.75 | E14: 4865.4 | F14: 4219.4 | G14: 3272.5 | M14: 7799 | N14: 6835 | O14: 5724 | P14: 4964 | Q14: 3850 | R14: 6629.15 | S14: 5809.75 | T14: 4865.4 | U14: 4219.4 | V14: 3272.5
A15: 27 | C15: 6760.9 | D15: 5927.05 | E15: 4954.65 | F15: 4296.75 | G15: 3332 | M15: 7954 | N15: 6973 | O15: 5829 | P15: 5055 | Q15: 3920 | R15: 6760.9 | S15: 5927.05 | T15: 4954.65 | U15: 4296.75 | V15: 3332
A16: 28 | C16: 6899.45 | D16: 6048.6 | E16: 5047.3 | F16: 4375.8 | G16: 3394.9 | M16: 8117 | N16: 7116 | O16: 5938 | P16: 5148 | Q16: 3994 | R16: 6899.45 | S16: 6048.6 | T16: 5047.3 | U16: 4375.8 | V16: 3394.9
A17: 29 | C17: 7043.95 | D17: 6174.4 | E17: 5145.05 | F17: 4460.8 | G17: 3459.5 | M17: 8287 | N17: 7264 | O17: 6053 | P17: 5248 | Q17: 4070 | R17: 7043.95 | S17: 6174.4 | T17: 5145.05 | U17: 4460.8 | V17: 3459.5
A18: 30 | C18: 7191.85 | D18: 6304.45 | E18: 5247.05 | F18: 4550.05 | G18: 3528.35 | M18: 8461 | N18: 7417 | O18: 6173 | P18: 5353 | Q18: 4151 | R18: 7191.85 | S18: 6304.45 | T18: 5247.05 | U18: 4550.05 | V18: 3528.35
A19: 31 | C19: 7347.4 | D19: 6442.15 | E19: 5349.05 | F19: 4639.3 | G19: 3597.2 | M19: 8644 | N19: 7579 | O19: 6293 | P19: 5458 | Q19: 4232 | R19: 7347.4 | S19: 6442.15 | T19: 5349.05 | U19: 4639.3 | V19: 3597.2
A20: 32 | C20: 7505.5 | D20: 6579 | E20: 5460.4 | F20: 4735.35 | G20: 3672 | M20: 8830 | N20: 7740 | O20: 6424 | P20: 5571 | Q20: 4320 | R20: 7505.5 | S20: 6579 | T20: 5460.4 | U20: 4735.35 | V20: 3672
A21: 33 | C21: 7672.1 | D21: 6725.2 | E21: 5570.9 | F21: 4832.25 | G21: 3746.8 | M21: 9026 | N21: 7912 | O21: 6554 | P21: 5685 | Q21: 4408 | R21: 7672.1 | S21: 6725.2 | T21: 5570.9 | U21: 4832.25 | V21: 3746.8
A22: 34 | C22: 7842.1 | D22: 6872.25 | E22: 5688.2 | F22: 4934.25 | G22: 3825 | M22: 9226 | N22: 8085 | O22: 6692 | P22: 5805 | Q22: 4500 | R22: 7842.1 | S22: 6872.25 | T22: 5688.2 | U22: 4934.25 | V22: 3825
A23: 35 | C23: 8017.2 | D23: 7026.95 | E23: 5808.9 | F23: 5037.1 | G23: 3906.6 | M23: 9432 | N23: 8267 | O23: 6834 | P23: 5926 | Q23: 4596 | R23: 8017.2 | S23: 7026.95 | T23: 5808.9 | U23: 5037.1 | V23: 3906.6
A24: 36 | C24: 8197.4 | D24: 7185.05 | E24: 5931.3 | F24: 5144.2 | G24: 3988.2 | M24: 9644 | N24: 8453 | O24: 6978 | P24: 6052 | Q24: 4692 | R24: 8197.4 | S24: 7185.05 | T24: 5931.3 | U24: 5144.2 | V24: 3988.2
A25: 37 | C25: 8382.7 | D25: 7348.25 | E25: 6062.2 | F25: 5256.4 | G25: 4076.6 | M25: 9862 | N25: 8645 | O25: 7132 | P25: 6184 | Q25: 4796 | R25: 8382.7 | S25: 7348.25 | T25: 6062.2 | U25: 5256.4 | V25: 4076.6
A26: 38 | C26: 8574.8 | D26: 7515.7 | E26: 6193.95 | F26: 5371.15 | G26: 4164.15 | M26: 10088 | N26: 8842 | O26: 7287 | P26: 6319 | Q26: 4899 | R26: 8574.8 | S26: 7515.7 | T26: 6193.95 | U26: 5371.15 | V26: 4164.15
A27: 39 | C27: 8770.3 | D27: 7687.4 | E27: 6329.95 | F27: 5488.45 | G27: 4256.8 | M27: 10318 | N27: 9044 | O27: 7447 | P27: 6457 | Q27: 5008 | R27: 8770.3 | S27: 7687.4 | T27: 6329.95 | U27: 5488.45 | V27: 4256.8
A28: 40 | C28: 8970.9 | D28: 7864.2 | E28: 6467.65 | F28: 5609.15 | G28: 4350.3 | M28: 10554 | N28: 9252 | O28: 7609 | P28: 6599 | Q28: 5118 | R28: 8970.9 | S28: 7864.2 | T28: 6467.65 | U28: 5609.15 | V28: 4350.3
A29: 41 | C29: 9179.15 | D29: 8046.1 | E29: 6613 | F29: 5733.25 | G29: 4447.2 | M29: 10799 | N29: 9466 | O29: 7780 | P29: 6745 | Q29: 5232 | R29: 9179.15 | S29: 8046.1 | T29: 6613 | U29: 5733.25 | V29: 4447.2
A30: 42 | C30: 9392.5 | D30: 8230.55 | E30: 6760.9 | F30: 5863.3 | G30: 4546.65 | M30: 11050 | N30: 9683 | O30: 7954 | P30: 6898 | Q30: 5349 | R30: 9392.5 | S30: 8230.55 | T30: 6760.9 | U30: 5863.3 | V30: 4546.65
A31: 43 | C31: 9609.25 | D31: 8421.8 | E31: 6911.35 | F31: 5993.35 | G31: 4648.65 | M31: 11305 | N31: 9908 | O31: 8131 | P31: 7051 | Q31: 5469 | R31: 9609.25 | S31: 8421.8 | T31: 6911.35 | U31: 5993.35 | V31: 4648.65
A32: 44 | C32: 9831.1 | D32: 8618.15 | E32: 7066.9 | F32: 6128.5 | G32: 4753.2 | M32: 11566 | N32: 10139 | O32: 8314 | P32: 7210 | Q32: 5592 | R32: 9831.1 | S32: 8618.15 | T32: 7066.9 | U32: 6128.5 | V32: 4753.2
A33: 45 | C33: 10059.75 | D33: 8818.75 | E33: 7226.7 | F33: 6267.05 | G33: 4861.15 | M33: 11835 | N33: 10375 | O33: 8502 | P33: 7373 | Q33: 5719 | R33: 10059.75 | S33: 8818.75 | T33: 7226.7 | U33: 6267.05 | V33: 4861.15
A34: 46 | C34: 10292.65 | D34: 9021.05 | E34: 7389.9 | F34: 6408.15 | G34: 4969.95 | M34: 12109 | N34: 10613 | O34: 8694 | P34: 7539 | Q34: 5847 | R34: 10292.65 | S34: 9021.05 | T34: 7389.9 | U34: 6408.15 | V34: 4969.95
A35: 47 | C35: 10530.65 | D35: 9231.85 | E35: 7557.35 | F35: 6552.65 | G35: 5082.15 | M35: 12389 | N35: 10861 | O35: 8891 | P35: 7709 | Q35: 5979 | R35: 10530.65 | S35: 9231.85 | T35: 7557.35 | U35: 6552.65 | V35: 5082.15
A36: 48 | C36: 10776.3 | D36: 9442.65 | E36: 7728.2 | F36: 6701.4 | G36: 5196.9 | M36: 12678 | N36: 11109 | O36: 9092 | P36: 7884 | Q36: 6114 | R36: 10776.3 | S36: 9442.65 | T36: 7728.2 | U36: 6701.4 | V36: 5196.9
A37: 49 | C37: 11023.65 | D37: 9662.8 | E37: 7901.6 | F37: 6851.85 | G37: 5314.2 | M37: 12969 | N37: 11368 | O37: 9296 | P37: 8061 | Q37: 6252 | R37: 11023.65 | S37: 9662.8 | T37: 7901.6 | U37: 6851.85 | V37: 5314.2
A38: 50 | C38: 11278.65 | D38: 9884.65 | E38: 8081.8 | F38: 7007.4 | G38: 5434.05 | M38: 13269 | N38: 11629 | O38: 9508 | P38: 8244 | Q38: 6393 | R38: 11278.65 | S38: 9884.65 | T38: 8081.8 | U38: 7007.4 | V38: 5434.05
A39: 51 | C39: 11538.75 | D39: 10113.3 | E39: 8265.4 | F39: 7166.35 | G39: 5557.3 | M39: 13575 | N39: 11898 | O39: 9724 | P39: 8431 | Q39: 6538 | R39: 11538.75 | S39: 10113.3 | T39: 8265.4 | U39: 7166.35 | V39: 5557.3
A40: 52 | C40: 11801.4 | D40: 10345.35 | E40: 8449.85 | F40: 7327 | G40: 5682.25 | M40: 13884 | N40: 12171 | O40: 9941 | P40: 8620 | Q40: 6685 | R40: 11801.4 | S40: 10345.35 | T40: 8449.85 | U40: 7327 | V40: 5682.25
A41: 53 | C41: 12072.55 | D41: 10582.5 | E41: 8640.25 | F41: 7492.75 | G41: 5810.6 | M41: 14203 | N41: 12450 | O41: 10165 | P41: 8815 | Q41: 6836 | R41: 12072.55 | S41: 10582.5 | T41: 8640.25 | U41: 7492.75 | V41: 5810.6
A42: 54 | C42: 12348.8 | D42: 10823.05 | E42: 8835.75 | F42: 7661.9 | G42: 5941.5 | M42: 14528 | N42: 12733 | O42: 10395 | P42: 9014 | Q42: 6990 | R42: 12348.8 | S42: 10823.05 | T42: 8835.75 | U42: 7661.9 | V42: 5941.5
A43: 55 | C43: 12631 | D43: 11069.55 | E43: 9033.8 | F43: 7832.75 | G43: 6075.8 | M43: 14860 | N43: 13023 | O43: 10628 | P43: 9215 | Q43: 7148 | R43: 12631 | S43: 11069.55 | T43: 9033.8 | U43: 7832.75 | V43: 6075.8
A44: 56 | C44: 12914.9 | D44: 11319.45 | E44: 9236.1 | F44: 8008.7 | G44: 6210.1 | M44: 15194 | N44: 13317 | O44: 10866 | P44: 9422 | Q44: 7306 | R44: 12914.9 | S44: 11319.45 | T44: 9236.1 | U44: 8008.7 | V44: 6210.1
A45: 57 | C45: 13206.45 | D45: 11576.15 | E45: 9440.1 | F45: 8184.65 | G45: 6348.65 | M45: 15537 | N45: 13619 | O45: 11106 | P45: 9629 | Q45: 7469 | R45: 13206.45 | S45: 11576.15 | T45: 9440.1 | U45: 8184.65 | V45: 6348.65
A46: 58 | C46: 13503.95 | D46: 11837.1 | E46: 9649.2 | F46: 8366.55 | G46: 6489.75 | M46: 15887 | N46: 13926 | O46: 11352 | P46: 9843 | Q46: 7635 | R46: 13503.95 | S46: 11837.1 | T46: 9649.2 | U46: 8366.55 | V46: 6489.75
A47: 59 | C47: 13804.85 | D47: 12099.75 | E47: 9864.25 | F47: 8553.55 | G47: 6632.55 | M47: 16241 | N47: 14235 | O47: 11605 | P47: 10063 | Q47: 7803 | R47: 13804.85 | S47: 12099.75 | T47: 9864.25 | U47: 8553.55 | V47: 6632.55
A48: 60 | C48: 14111.7 | D48: 12370.05 | E48: 10080.15 | F48: 8740.55 | G48: 6778.75 | M48: 16602 | N48: 14553 | O48: 11859 | P48: 10283 | Q48: 7975 | R48: 14111.7 | S48: 12370.05 | T48: 10080.15 | U48: 8740.55 | V48: 6778.75
A49: 61 | C49: 15726.7 | D49: 13785.3 | E49: 11229.35 | F49: 9735.9 | G49: 7551.4 | M49: 18502 | N49: 16218 | O49: 13211 | P49: 11454 | Q49: 8884 | R49: 15726.7 | S49: 13785.3 | T49: 11229.35 | U49: 9735.9 | V49: 7551.4
A50: 62 | C50: 17472.6 | D50: 15315.3 | E50: 12471.2 | F50: 10813.7 | G50: 8386.1 | M50: 20556 | N50: 18018 | O50: 14672 | P50: 12722 | Q50: 9866 | R50: 17472.6 | S50: 15315.3 | T50: 12471.2 | U50: 10813.7 | V50: 8386.1
A51: 63 | C51: 19352.8 | D51: 16962.6 | E51: 13812.5 | F51: 11976.5 | G51: 9288.8 | M51: 22768 | N51: 19956 | O51: 16250 | P51: 14090 | Q51: 10928 | R51: 19352.8 | S51: 16962.6 | T51: 13812.5 | U51: 11976.5 | V51: 9288.8
A52: 64 | C52: 21360.5 | D52: 18722.1 | E52: 15248.15 | F52: 13221.75 | G52: 10255.25 | M52: 25130 | N52: 22026 | O52: 17939 | P52: 15555 | Q52: 12065 | R52: 21360.5 | S52: 18722.1 | T52: 15248.15 | U52: 13221.75 | V52: 10255.25
A53: 65 | C53: 23503.35 | D53: 20600.6 | E53: 16783.25 | F53: 14552.85 | G53: 11286.3 | M53: 27651 | N53: 24236 | O53: 19745 | P53: 17121 | Q53: 13278 | R53: 23503.35 | S53: 20600.6 | T53: 16783.25 | U53: 14552.85 | V53: 11286.3
A54: 66 | C54: 25777.1 | D54: 22595.55 | E54: 18416.1 | F54: 15968.1 | G54: 12385.35 | M54: 30326 | N54: 26583 | O54: 21666 | P54: 18786 | Q54: 14571 | R54: 25777.1 | S54: 22595.55 | T54: 18416.1 | U54: 15968.1 | V54: 12385.35
A55: 67 | C55: 28181.75 | D55: 24702.7 | E55: 20144.15 | F55: 17465.8 | G55: 13546.45 | M55: 33155 | N55: 29062 | O55: 23699 | P55: 20548 | Q55: 15937 | R55: 28181.75 | S55: 24702.7 | T55: 20144.15 | U55: 17465.8 | V55: 13546.45
A56: 68 | C56: 30717.3 | D56: 26923.75 | E56: 21970.8 | F56: 19051.05 | G56: 14775.55 | M56: 36138 | N56: 31675 | O56: 25848 | P56: 22413 | Q56: 17383 | R56: 30717.3 | S56: 26923.75 | T56: 21970.8 | U56: 19051.05 | V56: 14775.55
A57: 69 | C57: 33388 | D57: 29264.65 | E57: 23894.35 | F57: 20718.75 | G57: 16067.55 | M57: 39280 | N57: 34429 | O57: 28111 | P57: 24375 | Q57: 18903 | R57: 33388 | S57: 29264.65 | T57: 23894.35 | U57: 20718.75 | V57: 16067.55
A58: 70 | C58: 36187.05 | D58: 31718.6 | E58: 25915.65 | F58: 22471.45 | G58: 17428.4 | M58: 42573 | N58: 37316 | O58: 30489 | P58: 26437 | Q58: 20504 | R58: 36187.05 | S58: 31718.6 | T58: 25915.65 | U58: 22471.45 | V58: 17428.4
A59: 71 | C59: 39121.25 | D59: 34289.85 | E59: 28033 | F59: 24306.6 | G59: 18850.45 | M59: 46025 | N59: 40341 | O59: 32980 | P59: 28596 | Q59: 22177 | R59: 39121.25 | S59: 34289.85 | T59: 28033 | U59: 24306.6 | V59: 18850.45
A60: 72 | C60: 42184.65 | D60: 36975 | E60: 30248.1 | F60: 26227.6 | G60: 20341.35 | M60: 49629 | N60: 43500 | O60: 35586 | P60: 30856 | Q60: 23931 | R60: 42184.65 | S60: 36975 | T60: 30248.1 | U60: 26227.6 | V60: 20341.35
A61: 73 | C61: 45380.65 | D61: 39776.6 | E61: 32556.7 | F61: 28231.9 | G61: 21894.3 | M61: 53389 | N61: 46796 | O61: 38302 | P61: 33214 | Q61: 25758 | R61: 45380.65 | S61: 39776.6 | T61: 32556.7 | U61: 28231.9 | V61: 21894.3
A62: 74 | C62: 48708.4 | D62: 42693.8 | E62: 34967.3 | F62: 30320.35 | G62: 23514.4 | M62: 57304 | N62: 50228 | O62: 41138 | P62: 35671 | Q62: 27664 | R62: 48708.4 | S62: 42693.8 | T62: 34967.3 | U62: 30320.35 | V62: 23514.4
A63: 75 | C63: 52168.75 | D63: 45725.75 | E63: 37473.1 | F63: 32493.8 | G63: 25199.95 | M63: 61375 | N63: 53795 | O63: 44086 | P63: 38228 | Q63: 29647 | R63: 52168.75 | S63: 45725.75 | T63: 37473.1 | U63: 32493.8 | V63: 25199.95
A64: 76 | C64: 52168.75 | D64: 45725.75 | E64: 37473.1 | F64: 32493.8 | G64: 25199.95 | M64: 61375 | N64: 53795 | O64: 44086 | P64: 38228 | Q64: 29647 | R64: =M64*85% -> 52168.75 | S64: =N64*85% -> 45725.75 | T64: =O64*85% -> 37473.1 | U64: =P64*85% -> 32493.8 | V64: =Q64*85% -> 25199.95
A65: 77 | C65: 52168.75 | D65: 45725.75 | E65: 37473.1 | F65: 32493.8 | G65: 25199.95 | M65: 61375 | N65: 53795 | O65: 44086 | P65: 38228 | Q65: 29647 | R65: 52168.75 | S65: 45725.75 | T65: 37473.1 | U65: 32493.8 | V65: 25199.95
A66: 78 | C66: 52168.75 | D66: 45725.75 | E66: 37473.1 | F66: 32493.8 | G66: 25199.95 | M66: 61375 | N66: 53795 | O66: 44086 | P66: 38228 | Q66: 29647 | R66: 52168.75 | S66: 45725.75 | T66: 37473.1 | U66: 32493.8 | V66: 25199.95
A67: 79 | C67: 52168.75 | D67: 45725.75 | E67: 37473.1 | F67: 32493.8 | G67: 25199.95 | M67: 61375 | N67: 53795 | O67: 44086 | P67: 38228 | Q67: 29647 | R67: 52168.75 | S67: 45725.75 | T67: 37473.1 | U67: 32493.8 | V67: 25199.95
A68: 80 | C68: 52168.75 | D68: 45725.75 | E68: 37473.1 | F68: 32493.8 | G68: 25199.95 | M68: 61375 | N68: 53795 | O68: 44086 | P68: 38228 | Q68: 29647 | R68: 52168.75 | S68: 45725.75 | T68: 37473.1 | U68: 32493.8 | V68: 25199.95
A69: 81 | C69: 52168.75 | D69: 45725.75 | E69: 37473.1 | F69: 32493.8 | G69: 25199.95 | M69: 61375 | N69: 53795 | O69: 44086 | P69: 38228 | Q69: 29647 | R69: 52168.75 | S69: 45725.75 | T69: 37473.1 | U69: 32493.8 | V69: 25199.95
A70: 82 | C70: 52168.75 | D70: 45725.75 | E70: 37473.1 | F70: 32493.8 | G70: 25199.95 | M70: 61375 | N70: 53795 | O70: 44086 | P70: 38228 | Q70: 29647 | R70: 52168.75 | S70: 45725.75 | T70: 37473.1 | U70: 32493.8 | V70: 25199.95
A71: 83 | C71: =M71*$K$6 -> 52168.75 | D71: =N71*$K$6 -> 45725.75 | E71: =O71*$K$6 -> 37473.1 | F71: =P71*$K$6 -> 32493.8 | G71: =Q71*$K$6 -> 25199.95 | M71: 61375 | N71: 53795 | O71: 44086 | P71: 38228 | Q71: 29647 | R71: 52168.75 | S71: 45725.75 | T71: 37473.1 | U71: 32493.8 | V71: 25199.95
A72: 84 | B72: o más | C72: 52168.75 | D72: 45725.75 | E72: 37473.1 | F72: 32493.8 | G72: 25199.95 | M72: 61375 | N72: 53795 | O72: 44086 | P72: 38228 | Q72: 29647 | R72: 52168.75 | S72: 45725.75 | T72: 37473.1 | U72: 32493.8 | V72: 25199.95
A73: 1 | B73: Hijo | C73: 2674.1 | D73: 2342.6 | E73: 1984.75 | F73: 1722.1 | G73: 1335.35 | M73: 3146 | N73: 2756 | O73: 2335 | P73: 2026 | Q73: 1571 | R73: =M73*85% -> 2674.1 | S73: =N73*85% -> 2342.6 | T73: =O73*85% -> 1984.75 | U73: =P73*85% -> 1722.1 | V73: =Q73*85% -> 1335.35
A74: 2 | B74: Hijos | C74: 4545.8 | D74: 3984.8 | E74: 3373.65 | F74: 2925.7 | G74: 2269.5 | M74: 5348 | N74: 4688 | O74: 3969 | P74: 3442 | Q74: 2670 | R74: 4545.8 | S74: 3984.8 | T74: 3373.65 | U74: 2925.7 | V74: 2269.5
A75: 3 | B75: Hijos o más | C75: 6415.8 | D75: 5625.3 | E75: 4763.4 | F75: 4131 | G75: 3203.65 | M75: 7548 | N75: 6618 | O75: 5604 | P75: 4860 | Q75: 3769 | R75: 6415.8 | S75: 5625.3 | T75: 4763.4 | U75: 4131 | V75: 3203.65
A77: BUPA GLOBAL ELITE - MENSUALES | H77: ?
A78: EDAD
C79: 1000 | D79: 2000 | E79: 3500
A80: 18 | C80: =+C6*$K$2 -> 554.4606667 | D80: =+D6*$K$2 -> 485.9166667 | E80: 411.6606667 | F80: 356.8413333 | G80: 276.8733333
A81: 19 | C81: =+C7*$K$2 -> 561.1246667 | D81: 491.8666667 | E81: 416.024 | F81: 360.808 | G81: 279.888
A82: 20 | C82: =+C8*$K$2 -> 568.2646667 | D82: 497.896 | E82: 420.6253333 | F82: 364.6953333 | G82: 282.8233333
A83: 21 | C83: =+C9*$K$2 -> 575.3253333 | D83: 504.322 | E83: 425.306 | F83: 368.8206667 | G83: 286.076
A84: 22 | C84: =+C10*$K$2 -> 582.7826667 | D84: 510.8273333 | E84: 430.304 | F84: 373.184 | G84: 289.408
A85: 23 | C85: =+C11*$K$2 -> 590.478 | D85: 517.7293333 | E85: 435.4606667 | F85: 377.5473333 | G85: 292.8986667
A86: 24 | C86: =+C12*$K$2 -> 598.4113333 | D86: 524.79 | E86: 440.6966667 | F86: 382.1486667 | G86: 296.3893333
A87: 25 | C87: =+C13*$K$2 -> 606.8206667 | D87: 531.8506667 | E87: 446.012 | F87: 386.75 | G87: 300.0386667
A88: 26 | C88: =+C14*$K$2 -> 618.7206667 | D88: 542.2433333 | E88: 454.104 | F88: 393.8106667 | G88: 305.4333333
A89: 27 | C89: =+C15*$K$2 -> 631.0173333 | D89: 553.1913333 | E89: 462.434 | F89: 401.03 | G89: 310.9866667
A90: 28 | C90: =+C16*$K$2 -> 643.9486667 | D90: 564.536 | E90: 471.0813333 | F90: 408.408 | G90: 316.8573333
A91: 29 | C91: =+C17*$K$2 -> 657.4353333 | D91: 576.2773333 | E91: 480.2046667 | F91: 416.3413333 | G91: 322.8866667
A92: 30 | C92: =+C18*$K$2 -> 671.2393333 | D92: 588.4153333 | E92: 489.7246667 | F92: 424.6713333 | G92: 329.3126667
A93: 31 | C93: =+C19*$K$2 -> 685.7573333 | D93: 601.2673333 | E93: 499.2446667 | F93: 433.0013333 | G93: 335.7386667
A94: 32 | C94: =+C20*$K$2 -> 700.5133333 | D94: 614.04 | E94: 509.6373333 | F94: 441.966 | G94: 342.72
A95: 33 | C95: =+C21*$K$2 -> 716.0626667 | D95: 627.6853333 | E95: 519.9506667 | F95: 451.01 | G95: 349.7013333
A96: 34 | C96: =+C22*$K$2 -> 731.9293333 | D96: 641.41 | E96: 530.8986667 | F96: 460.53 | G96: 357
A97: 35 | C97: =+C23*$K$2 -> 748.272 | D97: 655.8486667 | E97: 542.164 | F97: 470.1293333 | G97: 364.616
A98: 36 | C98: =+C24*$K$2 -> 765.0906667 | D98: 670.6046667 | E98: 553.588 | F98: 480.1253333 | G98: 372.232
A99: 37 | C99: =+C25*$K$2 -> 782.3853333 | D99: 685.8366667 | E99: 565.8053333 | F99: 490.5973333 | G99: 380.4826667
A100: 38 | C100: =+C26*$K$2 -> 800.3146667 | D100: 701.4653333 | E100: 578.102 | F100: 501.3073333 | G100: 388.654
A101: 39 | C101: =+C27*$K$2 -> 818.5613333 | D101: 717.4906667 | E101: 590.7953333 | F101: 512.2553333 | G101: 397.3013333
A102: 40 | C102: =+C28*$K$2 -> 837.284 | D102: 733.992 | E102: 603.6473333 | F102: 523.5206667 | G102: 406.028
A103: 41 | C103: =+C29*$K$2 -> 856.7206667 | D103: 750.9693333 | E103: 617.2133333 | F103: 535.1033333 | G103: 415.072
A104: 42 | C104: =+C30*$K$2 -> 876.6333333 | D104: 768.1846667 | E104: 631.0173333 | F104: 547.2413333 | G104: 424.354
A105: 43 | C105: =+C31*$K$2 -> 896.8633333 | D105: 786.0346667 | E105: 645.0593333 | F105: 559.3793333 | G105: 433.874
A106: 44 | C106: =+C32*$K$2 -> 917.5693333 | D106: 804.3606667 | E106: 659.5773333 | F106: 571.9933333 | G106: 443.632
A107: 45 | C107: =+C33*$K$2 -> 938.91 | D107: 823.0833333 | E107: 674.492 | F107: 584.9246667 | G107: 453.7073333
A108: 46 | C108: =+C34*$K$2 -> 960.6473333 | D108: 841.9646667 | E108: 689.724 | F108: 598.094 | G108: 463.862
A109: 47 | C109: =+C35*$K$2 -> 982.8606667 | D109: 861.6393333 | E109: 705.3526667 | F109: 611.5806667 | G109: 474.334
A110: 48 | C110: =+C36*$K$2 -> 1005.788 | D110: 881.314 | E110: 721.2986667 | F110: 625.464 | G110: 485.044
A111: 49 | C111: =+C37*$K$2 -> 1028.874 | D111: 901.8613333 | E111: 737.4826667 | F111: 639.506 | G111: 495.992
A112: 50 | C112: =+C38*$K$2 -> 1052.674 | D112: 922.5673333 | E112: 754.3013333 | F112: 654.024 | G112: 507.178
A113: 51 | C113: =+C39*$K$2 -> 1076.95 | D113: 943.908 | E113: 771.4373333 | F113: 668.8593333 | G113: 518.6813333
A114: 52 | C114: =+C40*$K$2 -> 1101.464 | D114: 965.566 | E114: 788.6526667 | F114: 683.8533333 | G114: 530.3433333
A115: 53 | C115: =+C41*$K$2 -> 1126.771333 | D115: 987.7 | E115: 806.4233333 | F115: 699.3233333 | G115: 542.3226667
A116: 54 | C116: =+C42*$K$2 -> 1152.554667 | D116: 1010.151333 | E116: 824.67 | F116: 715.1106667 | G116: 554.54
A117: 55 | C117: =+C43*$K$2 -> 1178.893333 | D117: 1033.158 | E117: 843.1546667 | F117: 731.0566667 | G117: 567.0746667
A118: 56 | C118: =+C44*$K$2 -> 1205.390667 | D118: 1056.482 | E118: 862.036 | F118: 747.4786667 | G118: 579.6093333
A119: 57 | C119: =+C45*$K$2 -> 1232.602 | D119: 1080.440667 | E119: 881.076 | F119: 763.9006667 | G119: 592.5406667
A120: 58 | C120: =+C46*$K$2 -> 1260.368667 | D120: 1104.796 | E120: 900.592 | F120: 780.878 | G120: 605.71
A121: 59 | C121: =+C47*$K$2 -> 1288.452667 | D121: 1129.31 | E121: 920.6633333 | F121: 798.3313333 | G121: 619.038
A122: 60 | C122: =+C48*$K$2 -> 1317.092 | D122: 1154.538 | E122: 940.814 | F122: 815.7846667 | G122: 632.6833333
A123: 61 | C123: =+C49*$K$2 -> 1467.825333 | D123: 1286.628 | E123: 1048.072667 | F123: 908.684 | G123: 704.7973333
A124: 62 | C124: =+C50*$K$2 -> 1630.776 | D124: 1429.428 | E124: 1163.978667 | F124: 1009.278667 | G124: 782.7026667
A125: 63 | C125: =+C51*$K$2 -> 1806.261333 | D125: 1583.176 | E125: 1289.166667 | F125: 1117.806667 | G125: 866.9546667
A126: 64 | C126: =+C52*$K$2 -> 1993.646667 | D126: 1747.396 | E126: 1423.160667 | F126: 1234.03 | G126: 957.1566667
A127: 65 | C127: =+C53*$K$2 -> 2193.646 | D127: 1922.722667 | E127: 1566.436667 | F127: 1358.266 | G127: 1053.388
A128: 66 | C128: =+C54*$K$2 -> 2405.862667 | D128: 2108.918 | E128: 1718.836 | F128: 1490.356 | G128: 1155.966
A129: 67 | C129: =+C55*$K$2 -> 2630.296667 | D129: 2305.585333 | E129: 1880.120667 | F129: 1630.141333 | G129: 1264.335333
A130: 68 | C130: =+C56*$K$2 -> 2866.948 | D130: 2512.883333 | E130: 2050.608 | F130: 1778.098 | G130: 1379.051333
A131: 69 | C131: =+C57*$K$2 -> 3116.213333 | D131: 2731.367333 | E131: 2230.139333 | F131: 1933.75 | G131: 1499.638
A132: 70 | C132: =+C58*$K$2 -> 3377.458 | D132: 2960.402667 | E132: 2418.794 | F132: 2097.335333 | G132: 1626.650667
A133: 71 | C133: =+C59*$K$2 -> 3651.316667 | D133: 3200.386 | E133: 2616.413333 | F133: 2268.616 | G133: 1759.375333
A134: 72 | C134: =+C60*$K$2 -> 3937.234 | D134: 3451 | E134: 2823.156 | F134: 2447.909333 | G134: 1898.526
A135: 73 | C135: =+C61*$K$2 -> 4235.527333 | D135: 3712.482667 | E135: 3038.625333 | F135: 2634.977333 | G135: 2043.468
A136: 74 | C136: =+C62*$K$2 -> 4546.117333 | D136: 3984.754667 | E136: 3263.614667 | F136: 2829.899333 | G136: 2194.677333
A137: 75 | C137: =+C63*$K$2 -> 4869.083333 | D137: 4267.736667 | E137: 3497.489333 | F137: 3032.754667 | G137: 2351.995333
A138: 76 | C138: =+C64*$K$2 -> 4869.083333 | D138: 4267.736667 | E138: 3497.489333 | F138: 3032.754667 | G138: 2351.995333
A139: 77 | C139: =+C65*$K$2 -> 4869.083333 | D139: 4267.736667 | E139: 3497.489333 | F139: 3032.754667 | G139: 2351.995333
A140: 78 | C140: =+C66*$K$2 -> 4869.083333 | D140: 4267.736667 | E140: 3497.489333 | F140: 3032.754667 | G140: 2351.995333
A141: 79 | C141: =+C67*$K$2 -> 4869.083333 | D141: 4267.736667 | E141: 3497.489333 | F141: 3032.754667 | G141: 2351.995333
A142: 80 | C142: =+C68*$K$2 -> 4869.083333 | D142: 4267.736667 | E142: 3497.489333
A143: 81 | C143: =+C69*$K$2 -> 4869.083333 | D143: 4267.736667 | E143: 3497.489333
A144: 82 | C144: =+C70*$K$2 -> 4869.083333 | D144: 4267.736667 | E144: 3497.489333
A145: 83 | C145: =+C71*$K$2 -> 4869.083333 | D145: 4267.736667 | E145: 3497.489333
A146: 84 | B146: o más | C146: =+C72*$K$2 -> 4869.083333 | D146: 4267.736667 | E146: 3497.489333 | F146: 3032.754667 | G146: 2351.995333
A147: 1 | B147: Hijo | C147: =+C73*$K$2 -> 249.5826667 | D147: 218.6426667 | E147: 185.2433333 | F147: 160.7293333 | G147: 124.6326667
A148: 2 | B148: Hijos | C148: =+C74*$K$2 -> 424.2746667 | D148: 371.9146667 | E148: 314.874 | F148: 273.0653333 | G148: 211.82
A149: 3 | B149: Hijos o más | C149: =+C75*$K$2 -> 598.808 | D149: 525.028 | E149: 444.584 | F149: 385.56 | G149: 299.0073333
A151: BUPA GLOBAL PREMIER
A152: TARIFAS ANUALES
A153: EDAD
C154: 2000 | D154: 3500 | E154: 5000 | F154: 10000 | M154: 2000 | N154: 3500 | O154: 5000 | P154: 10000
A155: 18 | C155: =R155 -> 4040.05 | D155: =S155 -> 3667.75 | E155: 2743.8 | F155: 1984.75 | G155: =Q155*$K$6 -> 0 | M155: 4753 | N155: 4315 | O155: 3228 | P155: 2335 | R155: =M155*0.85 -> 4040.05 | S155: =N155*0.85 -> 3667.75 | T155: 2743.8 | U155: 1984.75
A156: 19 | C156: =R156 -> 4091.05 | D156: =S156 -> 3712.8 | E156: =T156 -> 2768.45 | F156: =U156 -> 2003.45 | G156: =Q156*$K$6 -> 0 | M156: 4813 | N156: 4368 | O156: 3257 | P156: 2357 | R156: =M156*0.85 -> 4091.05 | S156: =N156*0.85 -> 3712.8 | T156: =O156*0.85 -> 2768.45 | U156: =P156*0.85 -> 2003.45
A157: 20 | C157: 4141.2 | D157: 3757.85 | E157: 2797.35 | F157: 2024.7 | G157: 0 | M157: 4872 | N157: 4421 | O157: 3291 | P157: 2382 | R157: 4141.2 | S157: 3757.85 | T157: 2797.35 | U157: 2024.7
A158: 21 | C158: 4193.9 | D158: 3804.6 | E158: 2826.25 | F158: 2045.95 | G158: 0 | M158: 4934 | N158: 4476 | O158: 3325 | P158: 2407 | R158: 4193.9 | S158: 3804.6 | T158: 2826.25 | U158: 2045.95
A159: 22 | C159: 4246.6 | D159: 3856.45 | E159: 2855.15 | F159: 2068.05 | G159: 0 | M159: 4996 | N159: 4537 | O159: 3359 | P159: 2433 | R159: 4246.6 | S159: 3856.45 | T159: 2855.15 | U159: 2068.05
A160: 23 | C160: 4303.55 | D160: 3906.6 | E160: 2885.75 | F160: 2089.3 | G160: 0 | M160: 5063 | N160: 4596 | O160: 3395 | P160: 2458 | R160: 4303.55 | S160: 3906.6 | T160: 2885.75 | U160: 2089.3
A161: 24 | C161: 4363.05 | D161: 3959.3 | E161: 2918.05 | F161: 2112.25 | G161: 0 | M161: 5133 | N161: 4658 | O161: 3433 | P161: 2485 | R161: 4363.05 | S161: 3959.3 | T161: 2918.05 | U161: 2112.25
A162: 25 | C162: 4422.55 | D162: 4012.85 | E162: 2950.35 | F162: 2135.2 | G162: 0 | M162: 5203 | N162: 4721 | O162: 3471 | P162: 2512 | R162: 4422.55 | S162: 4012.85 | T162: 2950.35 | U162: 2135.2
A163: 26 | C163: 4509.25 | D163: 4093.6 | E163: 3001.35 | F163: 2171.75 | G163: 0 | M163: 5305 | N163: 4816 | O163: 3531 | P163: 2555 | R163: 4509.25 | S163: 4093.6 | T163: 3001.35 | U163: 2171.75
A164: 27 | C164: 4598.5 | D164: 4175.2 | E164: 3051.5 | F164: 2209.15 | G164: 0 | M164: 5410 | N164: 4912 | O164: 3590 | P164: 2599 | R164: 4598.5 | S164: 4175.2 | T164: 3051.5 | U164: 2209.15
A165: 28 | C165: 4692.85 | D165: 4259.35 | E165: 3104.2 | F165: 2247.4 | G165: 0 | M165: 5521 | N165: 5011 | O165: 3652 | P165: 2644 | R165: 4692.85 | S165: 4259.35 | T165: 3104.2 | U165: 2247.4
A166: 29 | C166: 4791.45 | D166: 4347.75 | E166: 3160.3 | F166: 2288.2 | G166: 0 | M166: 5637 | N166: 5115 | O166: 3718 | P166: 2692 | R166: 4791.45 | S166: 4347.75 | T166: 3160.3 | U166: 2288.2
A167: 30 | C167: 4892.6 | D167: 4442.1 | E167: 3219.8 | F167: 2331.55 | G167: 0 | M167: 5756 | N167: 5226 | O167: 3788 | P167: 2743 | R167: 4892.6 | S167: 4442.1 | T167: 3219.8 | U167: 2331.55
A168: 31 | C168: 4996.3 | D168: 4535.6 | E168: 3281 | F168: 2374.9 | G168: 0 | M168: 5878 | N168: 5336 | O168: 3860 | P168: 2794 | R168: 4996.3 | S168: 4535.6 | T168: 3281 | U168: 2374.9
A169: 32 | C169: 5105.95 | D169: 4634.2 | E169: 3343.05 | F169: 2419.95 | G169: 0 | M169: 6007 | N169: 5452 | O169: 3933 | P169: 2847 | R169: 5105.95 | S169: 4634.2 | T169: 3343.05 | U169: 2419.95
A170: 33 | C170: 5217.3 | D170: 4736.2 | E170: 3410.2 | F170: 2467.55 | G170: 0 | M170: 6138 | N170: 5572 | O170: 4012 | P170: 2903 | R170: 5217.3 | S170: 4736.2 | T170: 3410.2 | U170: 2467.55
A171: 34 | C171: 5333.75 | D171: 4839.9 | E171: 3476.5 | F171: 2516.85 | G171: 0 | M171: 6275 | N171: 5694 | O171: 4090 | P171: 2961 | R171: 5333.75 | S171: 4839.9 | T171: 3476.5 | U171: 2516.85
A172: 35 | C172: 5451.9 | D172: 4949.55 | E172: 3549.6 | F172: 2569.55 | G172: 0 | M172: 6414 | N172: 5823 | O172: 4176 | P172: 3023 | R172: 5451.9 | S172: 4949.55 | T172: 3549.6 | U172: 2569.55
A173: 36 | C173: 5576 | D173: 5060.9 | E173: 3623.55 | F173: 2622.25 | G173: 0 | M173: 6560 | N173: 5954 | O173: 4263 | P173: 3085 | R173: 5576 | S173: 5060.9 | T173: 3623.55 | U173: 2622.25
A174: 37 | C174: 5702.65 | D174: 5174.8 | E174: 3698.35 | F174: 2676.65 | G174: 0 | M174: 6709 | N174: 6088 | O174: 4351 | P174: 3149 | R174: 5702.65 | S174: 5174.8 | T174: 3698.35 | U174: 2676.65
A175: 38 | C175: 5831.85 | D175: 5294.65 | E175: 3776.55 | F175: 2732.75 | G175: 0 | M175: 6861 | N175: 6229 | O175: 4443 | P175: 3215 | R175: 5831.85 | S175: 5294.65 | T175: 3776.55 | U175: 2732.75
A176: 39 | C176: 5967 | D176: 5416.2 | E176: 3855.6 | F176: 2791.4 | G176: 0 | M176: 7020 | N176: 6372 | O176: 4536 | P176: 3284 | R176: 5967 | S176: 5416.2 | T176: 3855.6 | U176: 2791.4
A177: 40 | C177: 6103 | D177: 5540.3 | E177: 3937.2 | F177: 2849.2 | G177: 0 | M177: 7180 | N177: 6518 | O177: 4632 | P177: 3352 | R177: 6103 | S177: 5540.3 | T177: 3937.2 | U177: 2849.2
A178: 41 | C178: 6244.95 | D178: 5666.95 | E178: 4021.35 | F178: 2910.4 | G178: 0 | M178: 7347 | N178: 6667 | O178: 4731 | P178: 3424 | R178: 6244.95 | S178: 5666.95 | T178: 4021.35 | U178: 2910.4
A179: 42 | C179: 6386.9 | D179: 5797 | E179: 4109.75 | F179: 2974.15 | G179: 0 | M179: 7514 | N179: 6820 | O179: 4835 | P179: 3499 | R179: 6386.9 | S179: 5797 | T179: 4109.75 | U179: 2974.15
A180: 43 | C180: 6537.35 | D180: 5931.3 | E180: 4199.85 | F180: 3041.3 | G180: 0 | M180: 7691 | N180: 6978 | O180: 4941 | P180: 3578 | R180: 6537.35 | S180: 5931.3 | T180: 4199.85 | U180: 3041.3
A181: 44 | C181: 6686.1 | D181: 6069 | E181: 4292.5 | F181: 3107.6 | G181: 0 | M181: 7866 | N181: 7140 | O181: 5050 | P181: 3656 | R181: 6686.1 | S181: 6069 | T181: 4292.5 | U181: 3107.6
A182: 45 | C182: 6842.5 | D182: 6211.8 | E182: 4387.7 | F182: 3176.45 | G182: 0 | M182: 8050 | N182: 7308 | O182: 5162 | P182: 3737 | R182: 6842.5 | S182: 6211.8 | T182: 4387.7 | U182: 3176.45
A183: 46 | C183: 7002.3 | D183: 6354.6 | E183: 4484.6 | F183: 3245.3 | G183: 0 | M183: 8238 | N183: 7476 | O183: 5276 | P183: 3818 | R183: 7002.3 | S183: 6354.6 | T183: 4484.6 | U183: 3245.3
A184: 47 | C184: 7164.65 | D184: 6500.8 | E184: 4584.9 | F184: 3319.25 | G184: 0 | M184: 8429 | N184: 7648 | O184: 5394 | P184: 3905 | R184: 7164.65 | S184: 6500.8 | T184: 4584.9 | U184: 3319.25
A185: 48 | C185: 7329.55 | D185: 6651.25 | E185: 4686.05 | F185: 3391.5 | G185: 0 | M185: 8623 | N185: 7825 | O185: 5513 | P185: 3990 | R185: 7329.55 | S185: 6651.25 | T185: 4686.05 | U185: 3391.5
A186: 49 | C186: 7499.55 | D186: 6805.1 | E186: 4789.75 | F186: 3466.3 | G186: 0 | M186: 8823 | N186: 8006 | O186: 5635 | P186: 4078 | R186: 7499.55 | S186: 6805.1 | T186: 4789.75 | U186: 3466.3
A187: 50 | C187: 7670.4 | D187: 6962.35 | E187: 4896.85 | F187: 3543.65 | G187: 0 | M187: 9024 | N187: 8191 | O187: 5761 | P187: 4169 | R187: 7670.4 | S187: 6962.35 | T187: 4896.85 | U187: 3543.65
A188: 51 | C188: 7848.05 | D188: 7122.15 | E188: 5003.95 | F188: 3622.7 | G188: 0 | M188: 9233 | N188: 8379 | O188: 5887 | P188: 4262 | R188: 7848.05 | S188: 7122.15 | T188: 5003.95 | U188: 3622.7
A189: 52 | C189: 8029.1 | D189: 7285.35 | E189: 5116.15 | F189: 3703.45 | G189: 0 | M189: 9446 | N189: 8571 | O189: 6019 | P189: 4357 | R189: 8029.1 | S189: 7285.35 | T189: 5116.15 | U189: 3703.45
A190: 53 | C190: 8211.85 | D190: 7452.8 | E190: 5230.9 | F190: 3786.75 | G190: 0 | M190: 9661 | N190: 8768 | O190: 6154 | P190: 4455 | R190: 8211.85 | S190: 7452.8 | T190: 5230.9 | U190: 3786.75
A191: 54 | C191: 8398.85 | D191: 7621.1 | E191: 5345.65 | F191: 3869.2 | G191: 0 | M191: 9881 | N191: 8966 | O191: 6289 | P191: 4552 | R191: 8398.85 | S191: 7621.1 | T191: 5345.65 | U191: 3869.2
A192: 55 | C192: 8592.65 | D192: 7797.05 | E192: 5463.8 | F192: 3955.9 | G192: 0 | M192: 10109 | N192: 9173 | O192: 6428 | P192: 4654 | R192: 8592.65 | S192: 7797.05 | T192: 5463.8 | U192: 3955.9
A193: 56 | C193: 8783.9 | D193: 7973 | E193: 5585.35 | F193: 4042.6 | G193: 0 | M193: 10334 | N193: 9380 | O193: 6571 | P193: 4756 | R193: 8783.9 | S193: 7973 | T193: 5585.35 | U193: 4042.6
A194: 57 | C194: 8983.65 | D194: 8152.35 | E194: 5709.45 | F194: 4133.55 | G194: 0 | M194: 10569 | N194: 9591 | O194: 6717 | P194: 4863 | R194: 8983.65 | S194: 8152.35 | T194: 5709.45 | U194: 4133.55
A195: 58 | C195: 9185.95 | D195: 8335.1 | E195: 5835.25 | F195: 4224.5 | G195: 0 | M195: 10807 | N195: 9806 | O195: 6865 | P195: 4970 | R195: 9185.95 | S195: 8335.1 | T195: 5835.25 | U195: 4224.5
A196: 59 | C196: 9389.95 | D196: 8522.1 | E196: 5963.6 | F196: 4315.45 | G196: 0 | M196: 11047 | N196: 10026 | O196: 7016 | P196: 5077 | R196: 9389.95 | S196: 8522.1 | T196: 5963.6 | U196: 4315.45
A197: 60 | C197: 9600.75 | D197: 8712.5 | E197: 6094.5 | F197: 4411.5 | G197: 0 | M197: 11295 | N197: 10250 | O197: 7170 | P197: 5190 | R197: 9600.75 | S197: 8712.5 | T197: 6094.5 | U197: 4411.5
A198: 61 | C198: 10697.25 | D198: 9708.7 | E198: 6782.15 | F198: 4909.6 | G198: 0 | M198: 12585 | N198: 11422 | O198: 7979 | P198: 5776 | R198: 10697.25 | S198: 9708.7 | T198: 6782.15 | U198: 4909.6
A199: 62 | C199: 11883.85 | D199: 10784.8 | E199: 7532.7 | F199: 5451.9 | G199: 0 | M199: 13981 | N199: 12688 | O199: 8862 | P199: 6414 | R199: 11883.85 | S199: 10784.8 | T199: 7532.7 | U199: 5451.9
A200: 63 | C200: 13162.25 | D200: 11944.2 | E200: 8341.05 | F200: 6038.4 | G200: 0 | M200: 15485 | N200: 14052 | O200: 9813 | P200: 7104 | R200: 13162.25 | S200: 11944.2 | T200: 8341.05 | U200: 6038.4
A201: 64 | C201: 14528.2 | D201: 13186.05 | E201: 9211.45 | F201: 6666.55 | G201: 0 | M201: 17092 | N201: 15513 | O201: 10837 | P201: 7843 | R201: 14528.2 | S201: 13186.05 | T201: 9211.45 | U201: 6666.55
A202: 65 | C202: 15985.95 | D202: 14506.1 | E202: 10139.65 | F202: 7338.05 | G202: 0 | M202: 18807 | N202: 17066 | O202: 11929 | P202: 8633 | R202: 15985.95 | S202: 14506.1 | T202: 10139.65 | U202: 7338.05
A203: 66 | C203: 17532.95 | D203: 15909.45 | E203: 11129.9 | F203: 8055.45 | G203: 0 | M203: 20627 | N203: 18717 | O203: 13094 | P203: 9477 | R203: 17532.95 | S203: 15909.45 | T203: 11129.9 | U203: 8055.45
... 1275 more rows
